bitfinex-derivatives/quotes_SOLF0:USTF0_20241231
["timestamp","ask_amount","ask_price","bid_price","bid_amount"]
[1735666557601,32.43600077,195.77,195.62,1.5333]
[1735666557801,32.43600077,195.77,195.63,1.4735]
[1735666558001,32.43600077,195.77,195.67,23.37838804]
[1735666558201,32.43600077,195.73,195.67,20.81918804]
[1735666558807,32.43600077,195.69,195.67,20.81918804]
[1735666559000,32.43600077,195.69,195.3,32.43600077]
[1735666559200,32.43600077,195.59,195.41,32.43600077]
[1735666559400,32.43600077,195.59,195.41,39.13600077]
[1735666559900,32.43600077,195.63,195.54,2.5609]
[1735666560200,32.43600077,195.59,195.41,6.7]
[1735666560396,32.43600077,195.59,195.43,2.5624]
[1735666560397,32.43600077,195.51,195.43,2.5624]
[1735666560595,32.43600077,195.51,195.38,1.4735]
[1735666560793,32.43600077,195.51,195.39,9.7547]
[1735666561197,32.43600077,195.59,195.39,9.7547]
[1735666561398,32.43600077,195.59,195.42,32.43600077]
[1735666561601,32.43600077,195.63,195.42,32.43600077]
[1735666561804,32.43600077,195.67,195.46,32.43600077]
[1735666562005,32.43600077,195.67,195.43,0.9412907]
[1735666562006,32.43600077,195.67,195.5,32.43600077]
[1735666562199,6.7,195.78,195.51,9.7988]
[1735666562405,32.43600077,195.71,195.51,9.7988]
[1735666562705,32.43600077,195.71,195.52,1.5056]
[1735666563000,32.43600077,195.66,195.41,6.7]
[1735666563205,32.43600077,195.66,195.48,32.43600077]
[1735666563404,32.43600077,195.7,195.52,32.43600077]
[1735666563602,32.43600077,195.7,195.53,1.5093]
[1735666563803,32.43600077,195.7,195.54,8.1596]
[1735666564004,32.43600077,195.66,195.54,8.1596]
[1735666564808,32.43600077,195.7,195.54,9.6213]
[1735666564996,32.43600077,195.7,195.54,42.05730077]
[1735666565303,32.43600077,195.7,195.54,35.35730077]
[1735666565503,32.43600077,195.7,195.55,6.72]
[1735666565704,32.43600077,195.74,195.66,2.5593]
[1735666566109,32.43600077,195.74,195.58,32.43600077]
[1735666566305,32.43600077,195.74,195.68,2.5591]
[1735666566498,32.43600077,195.78,195.68,6.72]
[1735666566810,34.99330077,195.82,195.72,2.5586]
[1735666566999,32.43600077,195.86,195.69,3.0812]
[1735666567198,32.43600077,195.9,195.7,32.43600077]
[1735666567503,2.5566,195.88,195.7,32.43600077]
[1735666567701,32.43600077,195.9,195.74,32.43600077]
[1735666567897,32.43600077,195.94,195.74,32.43600077]
[1735666568101,32.43600077,195.97,195.78,32.43600077]
[1735666568407,32.43600077,195.97,195.79,6.72]
[1735666569311,2.5559,195.93,195.84,2.557]
[1735666569511,32.43600077,195.97,195.8,1.4551]
[1735666569809,32.43600077,196.01,195.82,32.43600077]
[1735666570009,2.5551,195.99,195.92,2.556]
[1735666570408,32.43600077,196.05,195.89,6.7]
[1735666570605,32.43600077,196.1,195.9,32.43600077]
[1735666570808,32.43600077,196.1,195.91,1.4551]
[1735666571213,2.5544,196.05,195.98,2.5552]
[1735666571610,2.5538,196.09,196.02,2.5547]
[1735666571812,32.43600077,196.1,196.0,6.7]
[1735666572009,32.43600077,196.07,195.94,1.4797]
[1735666572209,6.7,196.17,195.94,1.4797]
[1735666572210,32.43600077,196.04,195.94,1.4797]
[1735666572414,32.43600077,196.04,195.93,6.7]
[1735666573137,32.43600077,196.1,195.86,3.0638]
[1735666573138,32.43600077,196.01,195.86,9.7638]
[1735666573311,2.5554,195.97,195.86,9.7638]
[1735666573519,32.43600077,196.01,195.86,9.7638]
[1735666574021,32.43600077,196.05,195.88,32.43600077]
[1735666574617,2.5548,196.02,195.93,2.5558]
[1735666574827,32.43600077,196.05,195.93,2.5558]
[1735666575228,2.5547,196.03,195.95,2.5556]
[1735666575520,32.43600077,196.05,195.88,32.43600077]
[1735666576024,32.43600077,196.09,195.92,32.43600077]
[1735666576423,2.5537,196.1,196.02,2.5546]
[1735666576626,32.43600077,196.13,196.01,6.7]
[1735666576824,32.43600077,196.17,196.01,6.7]
[1735666577020,32.43600077,196.3,196.04,32.43600077]
[1735666577326,32.43600077,196.21,196.04,32.43600077]
[1735666577521,2.5528,196.17,196.08,2.5538]
[1735666577818,32.43600077,196.17,196.02,1.4445]
[1735666578124,32.43600077,196.21,196.04,32.43600077]
[1735666578423,32.43600077,196.25,196.08,32.43600077]
[1735666578625,1.27688552,196.24,196.09,1.5724]
[1735666578921,1.27688552,196.23,196.1,6.7]
[1735666579120,1.27690679,196.22,196.1,6.7]
[1735666579321,33.71296985,196.21,196.1,6.7]
[1735666579522,1.27696908,196.2,196.1,6.7]
[1735666579721,2.5529,196.16,196.1,6.7]
[1735666580126,32.43600077,196.21,196.04,32.43600077]
[1735666580417,32.43600077,196.17,196.02,1.4445]
[1735666580619,1.27696014,196.16,196.02,1.4445]
[1735666580919,32.43600077,196.21,196.04,32.43600077]
[1735666581123,1.27712241,196.2,196.04,32.43600077]
[1735666581321,1.27712241,196.19,196.04,32.43600077]
[1735666581520,2.5528,196.17,196.09,2.5537]
[1735666581724,1.27710083,196.16,196.02,1.4445]
[1735666581918,1.27710083,196.15,196.02,1.4445]
[1735666582120,2.5532,196.13,196.02,1.4445]
[1735666582420,32.43600077,196.17,196.02,1.4445]
[1735666582724,2.5537,196.1,196.04,2.5544]
[1735666582926,32.43600077,196.17,196.04,2.5544]
[1735666583223,32.43600077,196.13,196.02,1.4445]
[1735666583421,1.27726267,196.12,196.02,1.4445]
[1735666583621,2.5537,196.1,196.02,1.4445]
[1735666583822,32.43600077,196.13,196.02,1.4445]
[1735666584125,32.43600077,196.21,196.03,32.43600077]
[1735666584432,1.27699305,196.2,196.03,32.43600077]
[1735666585624,32.43600077,196.17,196.02,1.4445]
[1735666585825,32.43600077,196.1,196.02,1.4445]
[1735666586127,32.43600077,196.07,195.97,6.84386067]
[1735666586328,1.27699305,196.06,195.97,6.84386067]
[1735666586824,32.43600077,196.03,195.97,6.84386067]
[1735666587026,2.5552,195.98,195.97,6.84386067]
[1735666587329,32.43600077,195.99,195.89,2.9886]
[1735666587526,1.27828764,195.98,195.89,2.9886]
[1735666587725,1.27828764,195.97,195.89,2.9886]
[1735666587927,2.5561,195.92,195.89,1.4521]
[1735666588127,32.43600077,196.03,195.89,1.4521]
[1735666588421,2.5552,195.99,195.92,2.5559]
[1735666588621,1.27829398,195.98,195.92,6.44]
[1735666588821,32.43600077,196.07,195.92,6.44]
[1735666589029,2.5545,196.04,195.96,2.5554]
[1735666589229,32.43600077,196.07,195.92,6.44]
[1735666589528,2.5549,196.0,195.95,2.5555]
[1735666589723,32.43600077,196.07,195.93,1.5929]
[1735666590029,1.27785813,196.06,195.93,1.5929]
[1735666590228,32.43600077,196.07,195.94,6.44]
[1735666590428,1.27764894,196.06,195.94,6.44]
[1735666590734,2.5544,196.05,195.98,2.5552]
[1735666590925,32.43600077,196.11,195.94,38.87600077]
[1735666590926,1.27778735,196.04,195.94,38.87600077]
[1735666591127,32.43600077,196.11,195.94,38.87600077]
[1735666591325,2.554,196.07,195.98,2.5551]
[1735666591528,1.27762012,196.06,195.94,38.87600077]
[1735666591726,1.27769379,196.05,195.95,6.44]
[1735666592029,1.27769379,196.04,195.92,6.84386067]
[1735666592231,33.71369456,196.03,195.92,6.84386067]
[1735666592538,1.5219,196.06,195.92,6.84386067]
[1735666592539,32.43600077,195.99,195.92,6.84386067]
[1735666592822,1.2783315,195.98,195.87,6.84386067]
[1735666593028,32.43600077,196.03,195.87,6.84386067]
[1735666593233,1.27830384,196.02,195.87,6.84386067]
[1735666593424,1.27830384,196.01,195.87,6.84386067]
[1735666593729,35.47880077,196.06,195.89,32.43600077]
[1735666593933,1.2780284,196.05,195.89,32.43600077]
[1735666594120,1.2780284,196.04,195.92,2.5559]
[1735666594324,1.2780284,196.03,195.92,2.5559]
[1735666594530,1.2780284,196.02,195.92,2.5559]
[1735666594723,1.27815771,196.01,195.92,2.5559]
[1735666595032,35.47880077,196.06,195.92,2.5559]
[1735666595330,35.47880077,196.06,195.85,32.38629162]
[1735666595331,32.43600077,196.02,195.88,6.44]
[1735666595527,32.43600077,195.98,195.88,6.44]
[1735666595724,2.5556,195.95,195.88,6.44]
[1735666595926,32.43600077,195.98,195.88,6.44]
[1735666596423,32.43600077,195.98,195.89,2.5563]
[1735666596627,32.43600077,195.98,195.88,6.44]
[1735666597027,32.43600077,195.98,195.88,8.9965]
[1735666597226,32.43600077,195.98,195.88,6.44]
[1735666597730,2.556,195.93,195.88,6.44]
[1735666598339,3.0428,196.06,195.84,73.65158201]
[1735666598340,32.43600077,195.9,195.84,5.24556067]
[1735666598632,32.43600077,195.85,195.83,20.53158201]
[1735666598934,2.5573,195.82,195.81,71.40247942]
[1735666599543,2.5578,195.79,195.77,136.87721339]
[1735666599723,2.5578,195.79,195.72,8.9985]
[1735666599928,2.5578,195.79,195.72,6.44]
[1735666600726,32.43600077,195.85,195.67,35.38120077]
[1735666600934,32.43600077,195.85,195.68,6.44]
[1735666601436,32.43600077,195.85,195.68,10.40648022]
[1735666601437,2.5578,195.79,195.68,10.40648022]
[1735666601934,32.43600077,195.85,195.68,10.40648022]
[1735666602138,32.43600077,195.9,195.69,3.96648022]
[1735666602434,1.27913665,195.89,195.69,3.96648022]
[1735666602631,32.43600077,195.86,195.7,6.44]
[1735666602831,1.27932624,195.85,195.69,3.96648022]
[1735666603033,2.5578,195.79,195.73,2.5584]
[1735666603233,2.5578,195.79,195.7,81.80895964]
[1735666603535,2.5578,195.79,195.72,2.5585]
[1735666603735,2.5578,195.79,195.7,81.80895964]
[1735666604134,2.5578,195.79,195.73,2.5583]
[1735666604434,2.5575,195.81,195.7,6.44]
[1735666604730,32.43600077,195.9,195.71,32.43600077]
[1735666604927,2.5572,195.83,195.71,32.43600077]
[1735666605331,2.5572,195.83,195.71,36.40168519]
[1735666605836,2.557,195.85,195.71,36.40168519]
[1735666606041,32.43600077,195.9,195.75,32.43600077]
[1735666606234,32.43600077,195.9,195.79,2.5576]
[1735666606532,32.43600077,195.94,195.8,9.3447]
[1735666606735,32.43600077,195.98,195.89,2.5563]
[1735666606928,32.43600077,195.98,195.89,6.2]
[1735666607132,58.2664,196.14,195.89,6.2]
[1735666607133,32.43600077,196.01,195.89,6.2]
[1735666607434,32.43600077,196.04,195.89,6.2]
[1735666607634,32.43600077,196.04,195.9,1.4448]
[1735666607835,32.43600077,196.07,195.91,32.43600077]
[1735666608037,2.5547,196.03,195.92,3.1447]
[1735666608334,32.43600077,196.04,195.9,6.2]
[1735666608538,1.2780205,196.03,195.9,6.2]
[1735666608735,32.43600077,195.98,195.9,6.2]
[1735666608929,32.43600077,195.98,195.84,65.54038535]
[1735666609235,32.43600077,195.94,195.85,54.75088535]
[1735666609434,1.27817835,195.93,195.85,54.75088535]
[1735666609640,2.5563,195.9,195.85,54.75088535]
[1735666609832,32.43600077,195.94,195.85,57.30778535]
[1735666610034,1.27867367,195.93,195.85,54.75088535]
[1735666610336,1.27867367,195.92,195.85,54.75088535]
[1735666610530,1.27867107,195.91,195.85,54.75088535]
[1735666610726,1.27867107,195.9,195.84,10.7895]
[1735666610930,2.5564,195.89,195.84,10.7895]
[1735666611130,32.43600077,195.98,195.84,9.3447]
[1735666611339,1.27842201,195.97,195.84,9.3447]
[1735666611530,1.27842201,195.96,195.87,2.5565]
[1735666611736,1.27842201,195.95,195.87,2.5565]
[1735666611935,1.27842201,195.94,195.87,2.5565]
[1735666612139,1.27842201,195.93,195.87,2.5565]
[1735666612336,32.43600077,195.98,195.87,2.5565]
[1735666612541,1.27839595,195.97,195.87,2.5565]
[1735666612731,1.27839595,195.96,195.84,9.3447]
[1735666612929,3.83409595,195.95,195.84,9.3447]
[1735666613133,1.27839595,195.94,195.84,9.3447]
[1735666613331,2.5564,195.89,195.84,3.1447]
[1735666613532,32.43600077,195.98,195.81,32.43600077]
[1735666613734,32.43600077,195.9,195.81,54.75088535]
[1735666613931,1.27865302,195.89,195.81,54.75088535]
[1735666614142,2.5574,195.82,195.81,54.75088535]
[1735666614540,3.83652979,195.82,195.81,54.75088535]
[1735666615044,3.83652979,195.82,195.78,1.4759]
[1735666615246,2.5571,195.84,195.78,4.0336]
[1735666615443,1.27907487,195.83,195.78,4.0336]
[1735666615646,32.43600077,195.9,195.78,1.4759]
[1735666615847,1.27907655,195.89,195.78,1.4759]
[1735666616147,1.27907655,195.88,195.78,1.4759]
[1735666616337,1.27907655,195.87,195.78,1.4759]
[1735666616541,1.27907655,195.86,195.78,1.4759]
[1735666616741,1.27907655,195.85,195.78,1.4759]
[1735666616945,1.27907655,195.84,195.78,1.4759]
[1735666617143,32.43600077,195.9,195.79,2.5576]
[1735666617338,1.27903907,195.89,195.78,1.4759]
[1735666617545,1.27903907,195.88,195.78,1.4759]
[1735666617746,1.27903907,195.87,195.78,1.4759]
[1735666617951,2.5566,195.88,195.78,1.4759]
[1735666618148,1.2788584,195.87,195.78,1.4759]
[1735666618349,2.5566,195.88,195.78,1.4759]
[1735666618853,32.43600077,195.94,195.78,1.4759]
[1735666619148,2.5564,195.89,195.79,3.97550237]
[1735666619343,1.27882911,195.88,195.81,2.5574]
[1735666619547,1.27882911,195.87,195.79,3.97550237]
[1735666619745,1.27882911,195.86,195.79,3.97550237]
[1735666619945,1.27882911,195.85,195.78,18.12749407]
[1735666620147,2.5572,195.83,195.78,18.12749407]
[1735666620544,32.43600077,195.9,195.78,18.12749407]
[1735666620743,1.2789783,195.89,195.78,18.12749407]
[1735666620942,1.2789783,195.88,195.78,1.4759]
[1735666621150,1.2789783,195.87,195.78,1.4759]
[1735666621350,1.2789783,195.86,195.78,1.4759]
[1735666621555,1.27905743,195.85,195.76,1.5532]
[1735666621751,1.27905743,195.84,195.76,15.94162899]
[1735666621953,32.43600077,195.82,195.76,15.94162899]
[1735666622149,2.558,195.77,195.76,15.94162899]
[1735666622358,3.83765178,195.77,195.76,15.94162899]
[1735666622654,3.83779422,195.77,195.76,15.94162899]
[1735666622851,2.559,195.69,195.68,79.72827646]
[1735666623052,3.83926774,195.69,195.68,79.72827646]
[1735666623650,32.43600077,195.76,195.68,79.72827646]
[1735666623856,1.28001544,195.75,195.68,79.72827646]
[1735666624053,1.28001544,195.74,195.64,33.30318814]
[1735666624248,1.28001544,195.73,195.61,3.1219]
[1735666624445,1.28001544,195.72,195.61,3.1219]
[1735666624652,32.43600077,195.76,195.61,3.1219]
[1735666624857,1.27998777,195.75,195.61,3.1219]
[1735666625058,1.27998777,195.74,195.61,3.1219]
[1735666625355,1.27998777,195.73,195.61,3.1219]
[1735666625556,32.43600077,195.8,195.62,32.43600077]
[1735666625751,1.27992331,195.79,195.66,32.43600077]
[1735666625951,2.5575,195.81,195.67,1.5168]
[1735666626151,5.94,195.91,195.68,5.94]
[1735666626349,1.27938827,195.89,195.7,32.43600077]
[1735666626554,1.27938827,195.88,195.71,5.94]
[1735666626853,32.43600077,195.84,195.72,2.5586]
[1735666627053,1.27938827,195.83,195.72,2.5586]
[1735666627362,5.94,195.91,195.71,5.94]
[1735666627363,1.27938827,195.82,195.71,5.94]
[1735666627551,32.43600077,195.86,195.72,3.058]
[1735666627747,32.43600077,195.83,195.72,3.058]
[1735666627951,1.2794134,195.82,195.67,88.70368612]
[1735666628349,2.5578,195.78,195.72,2.5586]
[1735666628552,32.43600077,195.83,195.67,33.95280077]
[1735666628752,32.43600077,195.79,195.68,5.94]
[1735666628953,1.27956791,195.78,195.68,5.94]
[1735666629354,2.5582,195.76,195.68,5.94]
[1735666629555,1.27956791,195.75,195.68,5.94]
[1735666629756,1.27956791,195.74,195.68,5.94]
[1735666630058,1.27956791,195.73,195.68,5.94]
[1735666630260,1.27956791,195.72,195.68,5.94]
[1735666630457,2.5588,195.71,195.67,1.5168]
[1735666630763,32.43600077,195.79,195.64,21.12820132]
[1735666631059,1.27985445,195.78,195.61,27.06820132]
[1735666631256,1.27985445,195.77,195.61,27.06820132]
[1735666631450,1.27985445,195.76,195.62,1.438]
[1735666631650,2.5587,195.72,195.66,2.5593]
[1735666632062,2.5587,195.72,195.63,3.0097]
[1735666632258,32.43600077,195.79,195.63,3.0097]
[1735666632460,1.27983262,195.78,195.63,3.0097]
[1735666632658,32.43600077,195.75,195.63,3.0097]
[1735666632966,32.43600077,195.71,195.64,3.90865977]
[1735666633155,1.27983262,195.7,195.64,3.90865977]
[1735666633365,2.5595,195.65,195.64,3.90865977]
[1735666633563,32.43600077,195.71,195.64,3.90865977]
[1735666633959,2.5595,195.65,195.64,3.90865977]
[1735666634161,1.28026284,195.7,195.56,3.90865977]
[1735666634360,2.5599,195.63,195.57,2.5604]
[1735666634558,2.5599,195.63,195.56,3.90865977]
[1735666634759,1.28026284,195.7,195.56,3.90865977]
[1735666635153,1.28026284,195.7,195.55,3.0097]
[1735666635962,32.43600077,195.71,195.57,2.5605]
[1735666636161,32.43600077,195.67,195.55,3.0097]
[1735666636459,32.43600077,195.63,195.52,21.12820132]
[1735666636965,2.5602,195.6,195.55,2.5608]
[1735666637160,5.94,195.65,195.55,2.5608]
[1735666637360,38.37600077,195.67,195.52,21.12820132]
[1735666637557,2.5602,195.6,195.55,2.5607]
[1735666637764,1.28063791,195.59,195.55,2.5607]
[1735666637962,2.5602,195.6,195.55,2.5607]
[1735666638158,1.28057434,195.59,195.58,2.5604]
[1735666638357,36.13858804,195.75,195.54,38.39600077]
[1735666638565,1.28030128,195.74,195.55,32.43600077]
[1735666638865,1.79802084,195.64,195.56,1.5182]
[1735666639056,1.79802084,195.66,195.57,3.0793]
[1735666639261,1.79802084,195.68,195.59,32.43600077]
[1735666639465,1.79802084,195.68,195.62,2.5599]
[1735666639660,1.79802084,195.66,195.57,3.0793]
[1735666639864,32.43600077,195.72,195.57,3.0793]
[1735666640066,2.5598,195.63,195.59,2.5603]
[1735666640257,3.46699443,195.71,195.57,3.0793]
[1735666640461,3.46699443,195.62,195.57,3.0793]
[1735666640761,3.46699443,195.61,195.57,3.0793]
[1735666641167,3.46699443,195.6,195.57,5.6399]
[1735666641369,3.46699443,195.6,195.57,3.0793]
[1735666641561,32.43600077,195.68,195.57,3.0793]
[1735666641766,32.43600077,195.72,195.61,2.5599]
[1735666641962,3.46631488,195.67,195.57,3.0793]
[1735666642162,6.02561488,195.67,195.62,2.5598]
[1735666642366,3.46631488,195.66,195.57,3.0793]
[1735666642564,32.43600077,195.71,195.57,3.0793]
[1735666642964,32.43600077,195.71,195.59,2.5603]
[1735666643163,3.46631488,195.7,195.59,2.5603]
[1735666643470,2.5595,195.66,195.57,3.0793]
[1735666643660,3.46631488,195.65,195.57,3.0793]
[1735666644065,3.46631488,195.7,195.57,3.0793]
[1735666644263,32.43600077,195.67,195.57,3.0793]
[1735666644660,2.5605,195.58,195.52,21.12820132]
[1735666644866,2.5605,195.58,195.52,1.5086]
[1735666645060,4.97961488,195.66,195.52,1.5086]
[1735666645061,32.43600077,195.63,195.52,1.5086]
[1735666645361,2.5609,195.55,195.52,1.5086]
[1735666645671,2.5607,195.56,195.52,4.0698]
[1735666646071,32.43600077,195.63,195.52,1.5086]
[1735666646267,2.5602,195.6,195.55,2.5608]
[1735666646467,3.45991182,195.62,195.52,1.5086]
[1735666646667,3.45991182,195.61,195.48,21.12820132]
[1735666647160,32.43600077,195.59,195.48,21.12820132]
[1735666647363,2.5616,195.49,195.48,21.12820132]
[1735666647761,32.43600077,195.55,195.48,21.12820132]
[1735666647965,3.45569241,195.54,195.48,21.12820132]
[1735666648164,5.1177,195.71,195.49,3.1138]
[1735666648165,32.43600077,195.63,195.49,3.1138]
[1735666648371,38.13600077,195.67,195.49,4.7]
[1735666648869,3.45387088,195.65,195.49,4.7]
[1735666649072,2.5599,195.62,195.58,2.5604]
[1735666649264,3.45387088,195.64,195.5,25.03381474]
[1735666649466,32.43600077,195.61,195.5,25.03381474]
[1735666650167,3.45254222,195.6,195.51,2.5614]
[1735666650465,32.43600077,195.65,195.5,3.90561342]
[1735666650661,2.5598,195.63,195.57,2.5604]
[1735666650861,2.5598,195.63,195.53,5.7]
[1735666651068,32.43600077,195.7,195.53,5.7]
[1735666651261,6.78147446,195.69,195.53,5.7]
[1735666651462,4.73286913,195.68,195.56,32.43600077]
[1735666651669,1.28037833,195.67,195.53,5.7]
[1735666651873,32.43600077,195.7,195.54,3.90561342]
[1735666652069,6.78037859,195.69,195.54,3.90561342]
[1735666652274,3.3285966,195.68,195.54,3.90561342]
[1735666652475,2.5596,195.65,195.56,23.68890132]
[1735666652773,32.43600077,195.66,195.56,21.12820132]
[1735666652970,32.43600077,195.62,195.56,21.12820132]
[1735666653169,2.5606,195.57,195.56,21.12820132]
[1735666653574,32.43600077,195.58,195.55,3.90561342]
[1735666653974,32.43600077,195.62,195.55,3.90561342]
[1735666654273,2.5604,195.59,195.55,3.90561342]
[1735666654670,32.43600077,195.62,195.53,5.7]
[1735666654869,0.9393,195.71,195.53,5.7]
[1735666654870,2.5599,195.63,195.53,5.7]
[1735666655070,32.43600077,195.7,195.53,5.7]
[1735666655271,3.328979,195.69,195.53,5.7]
[1735666655570,32.43600077,195.66,195.53,5.7]
[1735666655773,4.73948842,195.65,195.56,21.12820132]
[1735666655965,3.45917138,195.65,195.56,21.12820132]
[1735666656167,1.2804525,195.64,195.56,21.12820132]
[1735666656371,32.43600077,195.7,195.57,5.7]
[1735666656573,3.46080335,195.63,195.58,2.5604]
[1735666657075,3.46080335,195.62,195.58,2.5604]
[1735666657485,3.46080335,195.61,195.58,2.5604]
[1735666657784,3.46080335,195.61,195.57,5.7]
[1735666658180,6.02090335,195.61,195.57,5.7]
[1735666658378,3.46080335,195.69,195.57,5.7]
[1735666658579,2.04908449,195.68,195.57,5.7]
[1735666658778,2.5599,195.62,195.57,5.7]
[1735666658978,5.50988784,195.61,195.57,5.7]
[1735666659177,3.46080335,195.61,195.57,5.7]
[1735666659478,3.46080335,195.6,195.57,5.7]
[1735666659680,1.06370335,195.6,195.57,5.7]
[1735666659876,32.43600077,195.62,195.54,21.12820132]
[1735666660187,2.04905712,195.61,195.54,7.08001871]
[1735666660381,2.04905712,195.6,195.54,7.08001871]
[1735666660576,2.04905712,195.59,195.54,7.08001871]
[1735666660783,2.5608,195.57,195.54,7.08001871]
[1735666661086,32.43600077,195.65,195.5,87.12822003]
[1735666661282,2.5604,195.6,195.55,2.561]
[1735666661482,2.04914257,195.59,195.55,2.561]
[1735666661989,2.5607,195.57,195.53,7.08001871]
[1735666662286,2.04937753,195.56,195.53,7.08001871]
[1735666662487,2.5611,195.54,195.53,7.08001871]
[1735666662683,4.61047753,195.54,195.53,7.08001871]
[1735666663184,2.5612,195.53,195.52,13.49148417]
[1735666663386,2.04937753,195.53,195.5,7.09352818]
[1735666663586,32.43600077,195.51,195.5,7.09352818]
[1735666663788,37.0468783,195.51,195.5,7.09352818]
[1735666664184,34.99750077,195.51,195.5,7.09352818]
[1735666664685,34.99750077,195.51,195.47,54.75088535]
[1735666664686,2.5619,195.48,195.47,54.75088535]
[1735666664886,32.43600077,195.51,195.46,115.42951617]
[1735666665079,32.43600077,195.51,195.44,136.87721339]
[1735666665080,32.43600077,195.47,195.4,56.76377815]
[1735666665283,2.5628,195.41,195.4,56.76377815]
[1735666665794,32.43600077,195.5,195.4,56.76377815]
[1735666666283,2.562,195.47,195.35,3.0072]
[1735666666489,2.562,195.47,195.35,1.4832]
[1735666666790,2.562,195.47,195.36,1.524]
[1735666667089,32.43600077,195.5,195.36,1.524]
[1735666667292,1.4712,195.58,195.4,32.43600077]
[1735666667491,32.43600077,195.58,195.41,5.46]
[1735666667689,32.43600077,195.55,195.41,5.46]
[1735666667893,2.5618,195.49,195.42,2.5626]
[1735666668094,32.43600077,195.55,195.41,5.46]
[1735666668789,32.43600077,195.51,195.39,5.46]
[1735666668988,1.28142581,195.5,195.39,5.46]
[1735666669191,2.5623,195.45,195.39,8.0231]
[1735666669393,2.5623,195.45,195.39,5.46]
[1735666669590,32.43600077,195.47,195.36,1.524]
[1735666669789,1.28163192,195.46,195.36,1.524]
[1735666670092,1.28163192,195.45,195.36,1.524]
[1735666670291,2.5627,195.41,195.36,1.524]
[1735666670692,32.43600077,195.38,195.19,513.28955023]
[1735666670890,32.43600077,195.34,195.21,139.92701339]
[1735666671090,32.43600077,195.34,195.21,3.0498]
[1735666671587,3.42936188,195.33,195.21,3.0498]
[1735666671993,4.71190669,195.32,195.21,3.0498]
[1735666672192,32.43600077,195.31,195.21,3.0498]
[1735666672391,3.42936188,195.3,195.21,3.0498]
[1735666672993,3.42936188,195.29,195.21,3.0498]
[1735666673192,2.564,195.32,195.21,3.0498]
[1735666673596,3.42214015,195.31,195.24,2.565]
[1735666673895,35.85814092,195.31,195.21,3.0498]
[1735666674091,3.42214015,195.3,195.21,3.0498]
[1735666674498,2.5647,195.26,195.21,3.0498]
[1735666674798,32.43600077,195.28,195.21,3.0498]
[1735666675191,32.43600077,195.25,195.08,32.43600077]
[1735666675391,32.43600077,195.25,195.14,1.5368]
[1735666675596,2.5652,195.23,195.14,1.5368]
[1735666675995,32.43600077,195.25,195.14,1.5368]
[1735666676195,2.5652,195.22,195.16,2.566]
[1735666676500,32.43600077,195.25,195.14,1.5368]
[1735666676697,2.5652,195.23,195.14,1.5368]
[1735666676908,32.43600077,195.25,195.14,1.5368]
[1735666677197,32.43600077,195.15,195.06,1.4409]
[1735666677593,32.43600077,195.12,195.06,1.4409]
[1735666677792,2.5667,195.11,195.06,1.4409]
[1735666677996,32.43600077,195.07,194.97,20.81918804]
[1735666678201,32.43600077,195.01,194.97,20.81918804]
[1735666678493,32.43600077,195.01,194.93,136.87721339]
[1735666678697,32.43600077,194.97,194.93,136.87721339]
[1735666678898,35.00460077,194.97,194.93,136.87721339]
[1735666679097,32.43600077,194.97,194.84,84.69652803]
[1735666679296,32.43600077,195.0,194.85,0.94440192]
[1735666679496,32.43600077,195.0,194.84,82.12632803]
[1735666679694,32.43600077,195.1,194.86,32.43600077]
[1735666679898,4.00911708,195.09,194.94,32.43600077]
[1735666680095,2.5668,195.1,194.97,2.5685]
[1735666680290,32.43600077,195.14,194.95,4.4835]
[1735666680493,4.00893279,195.13,194.99,32.43600077]
[1735666680697,3.3802338,195.12,195.03,32.43600077]
[1735666680997,3.3802338,195.12,195.04,6.0]
[1735666681194,32.43600077,195.19,194.99,32.43600077]
[1735666681501,32.43600077,195.15,194.97,6.0]
[1735666681702,32.43600077,195.11,194.97,6.0]
[1735666682099,32.43600077,195.19,194.97,6.0]
[1735666682300,32.43600077,195.15,194.97,6.0]
[1735666682501,1.284201,195.14,194.97,6.0]
[1735666682703,32.43600077,195.15,195.0,2.5681]
[1735666682899,1.28432134,195.14,194.97,6.0]
[1735666683199,2.5661,195.16,195.04,35.00350077]
[1735666683397,2.5661,195.16,195.05,7.5638]
[1735666683599,38.43600077,195.23,195.05,9.1062]